[Event "35th European Club Cup 2019"]
[Site "Ulcinj"]
[Date "2019.11.14"]
[Round "5.15"]
[White "Pobor, Danilo"]
[Black "Ahvenjarvi, Jani"]
[Result "1/2-1/2"]
[ECO "D53"]
[WhiteElo "2041"]
[BlackElo "2309"]
[Annotator "NA"]
[PlyCount "51"]
[EventDate "2019.11.10"]
[EventType "team-tourn"]
[EventCountry "MNE"]
[SourceTitle "playchess.com"]
[Source "ChessBase"]
[SourceQuality "1"]
[WhiteTeam "Crnogorac"]
[BlackTeam "Tammer-Shakki"]
[TimeControl "40/5400+30:1800+30"]

1. d4 {[%emt 0:00:00]} Nf6 {[%emt 0:00:00]} 2. Bg5 {[%emt 0:00:00]} d5 {[%emt 0:00:07]} 3. c4 {[%emt 0:00:49]} e6 {[%emt 0:03:22]} 4. Nc3 {[%emt 0:00:21]} Be7 {[%emt 0:01:38]} 5. e3 {[%emt 0:01:39]} O-O {[%emt 0:00:13]} 6. cxd5 {[%emt 0:02:06]} exd5 {[%emt 0:00:46]} 7. Bd3 {[%emt 0:00:21]} c6 {[%emt 0:01:05]} 8. Qc2 {[%emt 0:00:38]} Nbd7 {[%emt 0:01:13]} 9. Nf3 {[%emt 0:01:15]} Re8 {[%emt 0:01:25]} 10. O-O {[%emt 0:00:59]} Nf8 {[%emt 0:00:40]} 11. Rab1 {[%emt 0:02:05]} Ng6 {[%emt 0:08:34]} 12. b4 {[%emt 0:05:11]} a6 {[%emt 0:10:55]} 13. a4 {[%emt 0:01:22]} b5 {[%emt 0:15:30]} 14. Ne2 {[%emt 0:08:10]} Bb7 {[%emt 0:04:51]} 15. Nf4 {[%emt 0:20:20]} Nd7 {[%emt 0:01:15]} 16. Nxg6 {[%emt 0:05:32]} hxg6 {[%emt 0:00:53]} 17. Bf4 {[%emt 0:00:29]} Nb6 {[%emt 0:01:17]} 18. Ne5 {[%emt 0:03:48]} Rc8 {[%emt 0:08:02]} 19. Bxg6 {[%emt 0:08:11]} fxg6 {[%emt 0:05:41]} 20. Qxg6 {[%emt 0:00:22]} Rf8 {[%emt 0:04:56]} 21. Qe6+ {[%emt 0:01:04]} Kh7 {[%emt 0:00:26]} 22. Qh3+ {[%emt 0:01:12]} Kg8 {[%emt 0:00:41]} 23. Qe6+ {[%emt 0:02:09]} Kh7 {[%emt 0:00:08]} 24. Qh3+ {[%emt 0:01:22]} Kg8 {[%emt 0:00:11]} 25. Qe6+ {[%emt 0:01:59]} Kh7 {[%emt 0:00:07]} 26. Qh3+ 1/2-1/2

[Event "35th European Club Cup 2019"]
[Site "Ulcinj"]
[Date "2019.11.14"]
[Round "5.16"]
[White "Yuffa, Daniil"]
[Black "Sengupta, Deep"]
[Result "1-0"]
[ECO "D20"]
[WhiteElo "2578"]
[BlackElo "2557"]
[Annotator "ChessBase"]
[PlyCount "83"]
[EventDate "2019.11.10"]
[EventType "team-tourn"]
[EventCountry "MNE"]
[SourceTitle "playchess.com"]
[Source "ChessBase"]
[SourceQuality "1"]
[WhiteTeam "Molodezka"]
[BlackTeam "Koge SK"]
[TimeControl "40/5400+30:1800+30"]

1. d4 {[%emt 0:00:00]} d5 {[%emt 0:00:00]} 2. c4 {[%emt 0:00:00]} dxc4 {[%emt 0:00:00]} 3. e3 {[%emt 0:00:00]} e5 {[%emt 0:00:00]} 4. Bxc4 {[%emt 0:00:07]} exd4 {[%emt 0:00:03]} 5. exd4 {[%emt 0:00:05]} Nf6 {[%emt 0:00:06]} 6. Nf3 {[%emt 0:00:04]} Bd6 {[%emt 0:00:06]} 7. Qe2+ {[%emt 0:00:04]} Qe7 {[%emt 0:00:15]} 8. Qxe7+ {[%emt 0:00:32]} Bxe7 {[%emt 0:00:05]} 9. O-O {[%emt 0:00:09]} Nbd7 {[%emt 0:01:48]} 10. Re1 {[%emt 0:04:18]} Nb6 {[%emt 0:00:06]} 11. Bb3 {[%emt 0:01:11]} a5 {[%emt 0:02:10]} 12. a4 {[%emt 0:14:35]} Nfd5 {[%emt 0:02:14]} 13. Nc3 {[%emt 0:01:07]} c6 {[%emt 0:01:45]} 14. Bd2 {[%emt 0:02:47]} Be6 {[%emt 0:01:19]} 15. Ne4 {[%emt 0:00:51]} O-O {[%emt 0:01:59]} 16. Nfg5 {[%emt 0:07:39]} Bf5 {[%emt 0:19:30]} 17. Nc5 {[%emt 0:01:22]} Bxc5 {[%emt 0:00:58]} 18. dxc5 {[%emt 0:00:04]} Nd7 {[%emt 0:00:07]} 19. Rac1 {[%emt 0:01:36]} N7f6 {[%emt 0:03:13]} 20. Nf3 {[%emt 0:09:30]} Ne4 {[%emt 0:11:20]} 21. Bxd5 {[%emt 0:18:21]} cxd5 {[%emt 0:00:43]} 22. Be3 {[%emt 0:04:11]} Bd7 {[%emt 0:13:51]} 23. b3 {[%emt 0:01:59]} Rfc8 {[%emt 0:03:22]} 24. Red1 {[%emt 0:04:07]} Be6 {[%emt 0:00:58]} 25. h4 {[%emt 0:06:50]} Nf6 {[%emt 0:16:06]} 26. Nd4 {[%emt 0:04:56]} Nd7 {[%emt 0:02:16]} 27. c6 {[%emt 0:02:31]} bxc6 {[%emt 0:00:21]} 28. Nxc6 {[%emt 0:00:08]} Kf8 {[%emt 0:15:11]} 29. Bd2 {[%emt 0:00:17]} Ke8 {[%emt 0:01:30]} 30. Re1 {[%emt 0:05:04]} Nf6 {[%emt 0:01:28]} 31. f3 {[%emt 0:01:11]} Kd7 {[%emt 0:01:57]} 32. Nxa5 {[%emt 0:00:13]} d4 {[%emt 0:00:21]} 33. Nb7 {[%emt 0:04:16]} Bxb3 {[%emt 0:00:39]} 34. Nc5+ {[%emt 0:00:14]} Rxc5 {[%emt 0:00:03]} 35. Rxc5 {[%emt 0:00:03]} Rxa4 {[%emt 0:00:06]} 36. Rb1 {[%emt 0:01:46]} Bd5 {[%emt 0:01:31]} 37. Bf4 {[%emt 0:00:47]} d3 {[%emt 0:00:27]} 38. Bg3 {[%emt 0:04:26]} Bc6 {[%emt 0:00:31]} 39. Rbc1 {[%emt 0:00:38]} Nh5 {[%emt 0:00:34]} 40. Rxh5 {[%emt 0:00:00]} d2 {[%emt 0:00:00]} 41. Rd1 {[%emt 0:00:50]} Rd4 {[%emt 0:00:07]} 42. Ra5 {[%emt 0:01:01]} 1-0

[Event "35th European Club Cup 2019"]
[Site "Ulcinj"]
[Date "2019.11.14"]
[Round "5.16"]
[White "Mertanen, Janne"]
[Black "Pobor, Milo"]
[Result "1-0"]
[ECO "A43"]
[WhiteElo "2252"]
[BlackElo "2064"]
[Annotator "NA"]
[PlyCount "105"]
[EventDate "2019.11.10"]
[EventType "team-tourn"]
[EventCountry "MNE"]
[SourceTitle "playchess.com"]
[Source "ChessBase"]
[SourceQuality "1"]
[WhiteTeam "Tammer-Shakki"]
[BlackTeam "Crnogorac"]
[TimeControl "40/5400+30:1800+30"]

1. d4 {[%emt 0:00:00]} c5 {[%emt 0:00:00]} 2. d5 {[%emt 0:00:00]} Nf6 {[%emt 0:00:00]} 3. c4 {[%emt 0:00:09]} g6 {[%emt 0:00:07]} 4. Nc3 {[%emt 0:00:11]} Bg7 {[%emt 0:00:07]} 5. e4 {[%emt 0:00:17]} d6 {[%emt 0:00:10]} 6. h3 {[%emt 0:00:52]} O-O {[%emt 0:00:10]} 7. Nf3 {[%emt 0:00:31]} e6 {[%emt 0:00:07]} 8. Bd3 {[%emt 0:00:59]} exd5 {[%emt 0:00:07]} 9. exd5 {[%emt 0:00:45]} Re8+ {[%emt 0:00:05]} 10. Be3 {[%emt 0:00:54]} a6 {[%emt 0:00:06]} 11. O-O {[%emt 0:06:16]} Nbd7 {[%emt 0:01:05]} 12. Qd2 {[%emt 0:18:03]} b5 {[%emt 0:01:50]} 13. cxb5 {[%emt 0:02:59]} Nb6 {[%emt 0:00:10]} 14. bxa6 {[%emt 0:09:12]} Nbxd5 {[%emt 0:08:51]} 15. Nxd5 {[%emt 0:01:53]} Nxd5 {[%emt 0:00:06]} 16. Bg5 {[%emt 0:00:55]} Nf6 {[%emt 0:03:16]} 17. Bb5 {[%emt 0:19:01]} Bd7 {[%emt 0:16:10]} 18. Bc4 {[%emt 0:00:44]} Bc6 {[%emt 0:01:06]} 19. Rfe1 {[%emt 0:02:33]} Qd7 {[%emt 0:07:17]} 20. Rxe8+ {[%emt 0:07:18]} Rxe8 {[%emt 0:01:06]} 21. Bxf6 {[%emt 0:21:40]} Bxf6 {[%emt 0:00:09]} 22. Qf4 {[%emt 0:00:29]} Bxb2 {[%emt 0:06:29]} 23. Rd1 {[%emt 0:00:06]} d5 24. Bxd5 {[%emt 0:01:30]} Bxd5 {[%emt 0:06:57]} 25. Qd2 {[%emt 0:00:09]} Bd4 {[%emt 0:03:17]} 26. Nxd4 {[%emt 0:00:29]} cxd4 {[%emt 0:00:01]} 27. Qxd4 {[%emt 0:00:27]} Rd8 {[%emt 0:04:14]} 28. a7 {[%emt 0:02:17]} Qb7 {[%emt 0:03:48]} 29. Rd2 {[%emt 0:00:31]} Qa8 {[%emt 0:02:39]} 30. Rb2 {[%emt 0:00:39]} Bc6 {[%emt 0:07:55]} 31. Qf6 {[%emt 0:02:20]} Re8 {[%emt 0:03:48]} 32. Qd6 {[%emt 0:00:43]} Kg7 {[%emt 0:03:22]} 33. Kh2 {[%emt 0:01:01]} Bb7 {[%emt 0:08:47]} 34. Qc7 {[%emt 0:00:30]} Qxa7 {[%emt 0:00:53]} 35. Qxb7 {[%emt 0:00:15]} Qd4 {[%emt 0:00:23]} 36. Qb4 {[%emt 0:00:44]} Qe5+ {[%emt 0:00:51]} 37. g3 {[%emt 0:00:35]} Rd8 {[%emt 0:01:15]} 38. Rc2 Ra8 39. a4 {[%emt 0:00:49]} h5 {[%emt 0:01:58]} 40. h4 {[%emt 0:00:00]} Qa1 {[%emt 0:00:00]} 41. Rc4 {[%emt 0:03:45]} Qa2 {[%emt 0:06:02]} 42. Rf4 {[%emt 0:00:38]} Kg8 {[%emt 0:00:44]} 43. Qd4 {[%emt 0:05:08]} Rc8 {[%emt 0:02:33]} 44. Re4 {[%emt 0:01:19]} Ra8 {[%emt 0:03:02]} 45. Kg2 {[%emt 0:01:25]} Qb3 {[%emt 0:00:52]} 46. a5 {[%emt 0:04:05]} Qb7 {[%emt 0:01:46]} 47. Kh2 {[%emt 0:00:16]} Qc6 {[%emt 0:00:35]} 48. Re5 {[%emt 0:00:36]} Rb8 {[%emt 0:01:50]} 49. Rd5 {[%emt 0:00:58]} Qc7 {[%emt 0:01:42]} 50. a6 {[%emt 0:00:32]} Ra8 {[%emt 0:00:10]} 51. Rd7 {[%emt 0:00:59]} Qc8 {[%emt 0:00:34]} 52. Qd5 {[%emt 0:02:13]} Qe8 {[%emt 0:00:29]} 53. Rxf7 {[%emt 0:01:06]} 1-0

[Event "35th European Club Cup 2019"]
[Site "Ulcinj"]
[Date "2019.11.14"]
[Round "5.16"]
[White "Bartos, Jan"]
[Black "Repplinger, Marc"]
[Result "1-0"]
[ECO "A96"]
[WhiteElo "2136"]
[BlackElo "2211"]
[Annotator "NA"]
[PlyCount "105"]
[EventDate "2019.11.10"]
[EventType "team-tourn"]
[EventCountry "MNE"]
[SourceTitle "playchess.com"]
[Source "ChessBase"]
[SourceQuality "1"]
[WhiteTeam "Unichess"]
[BlackTeam "De Sprenger Echternach"]
[TimeControl "40/5400+30:1800+30"]

1. d4 e6 2. Nf3 f5 3. g3 Nf6 4. Bg2 Be7 5. O-O O-O 6. c4 d6 7. Nc3 Ne4 8. Nxe4 fxe4 9. Nd2 d5 10. f3 Nc6 11. fxe4 Rxf1+ 12. Kxf1 dxc4 13. Nf3 e5 14. d5 Bg4 15. Be3 Bxf3 16. exf3 Nb4 17. a3 Nd3 18. b3 Bc5 19. Bxc5 Nxc5 20. bxc4 Qd6 21. Kg1 Rf8 22. Qc2 b6 23. Qc3 Kh8 24. Rf1 Qe7 25. Qe3 h6 26. f4 Re8 27. f5 Nd7 28. h4 Kg8 29. Bf3 Rb8 30. Rb1 Rf8 31. Kg2 Qd6 32. g4 Kf7 33. g5 hxg5 34. hxg5 Rh8 35. Rh1 Rxh1 36. Kxh1 Qf8 37. Bh5+ Ke7 38. Qh3 Qh8 39. Kg2 Nc5 40. Kf3 Nd7 41. Ke3 Kd8 42. Bg4 Qf8 43. Kd2 Qc5 44. Qh8+ Nf8 45. Be2 Qxa3 46. Qxg7 Qb2+ 47. Ke1 Qc1+ 48. Kf2 Qf4+ 49. Bf3 Qh2+ 50. Ke3 Qg1+ 51. Ke2 Qc5 52. Qxe5 Kc8 53. Qe8+ 1-0

[Event "35th European Club Cup 2019"]
[Site "Ulcinj"]
[Date "2019.11.14"]
[Round "5.17"]
[White "Rozentalis, Eduardas"]
[Black "Antipov, Mikhail Al."]
[Result "0-1"]
[ECO "C07"]
[WhiteElo "2547"]
[BlackElo "2558"]
[Annotator "ChessBase"]
[PlyCount "78"]
[EventDate "2019.11.10"]
[EventType "team-tourn"]
[EventCountry "MNE"]
[SourceTitle "playchess.com"]
[Source "ChessBase"]
[SourceQuality "1"]
[WhiteTeam "Koge SK"]
[BlackTeam "Molodezka"]
[TimeControl "40/5400+30:1800+30"]

1. e4 {[%emt 0:00:00]} e6 {[%emt 0:00:00]} 2. d4 {[%emt 0:00:00]} d5 {[%emt 0:00:00]} 3. Nd2 {[%emt 0:00:24]} c5 {[%emt 0:00:00]} 4. Ngf3 {[%emt 0:00:34]} cxd4 {[%emt 0:00:00]} 5. Nxd4 {[%emt 0:00:37]} Nc6 {[%emt 0:00:00]} 6. Bb5 {[%emt 0:00:29]} Bd7 {[%emt 0:00:03]} 7. Nxc6 {[%emt 0:00:09]} bxc6 {[%emt 0:01:10]} 8. Bd3 {[%emt 0:00:15]} Bd6 {[%emt 0:00:57]} 9. Qe2 {[%emt 0:02:45]} e5 {[%emt 0:04:29]} 10. f4 {[%emt 0:03:29]} exf4 {[%emt 0:09:38]} 11. exd5+ {[%emt 0:01:58]} Kf8 {[%emt 0:01:00]} 12. Ne4 {[%emt 0:03:50]} Qh4+ {[%emt 0:04:46]} 13. Qf2 {[%emt 0:06:05]} Qxf2+ {[%emt 0:02:20]} 14. Kxf2 {[%emt 0:00:12]} Be5 {[%emt 0:00:08]} 15. dxc6 {[%emt 0:04:38]} Bxc6 {[%emt 0:00:12]} 16. Re1 {[%emt 0:00:17]} Nh6 {[%emt 0:25:14]} 17. Kf1 {[%emt 0:05:22]} Nf5 {[%emt 0:10:11]} 18. Nc3 {[%emt 0:15:18]} Ne3+ {[%emt 0:02:43]} 19. Bxe3 {[%emt 0:00:17]} fxe3 {[%emt 0:00:04]} 20. Rxe3 {[%emt 0:00:39]} Bxh2 {[%emt 0:05:02]} 21. Be4 {[%emt 0:01:59]} Bxe4 {[%emt 0:02:15]} 22. Nxe4 {[%emt 0:01:49]} h5 {[%emt 0:03:31]} 23. Rd1 {[%emt 0:09:45]} Re8 {[%emt 0:03:35]} 24. Rh3 {[%emt 0:05:07]} Rh6 {[%emt 0:02:23]} 25. Rxh2 {[%emt 0:03:27]} Rxe4 {[%emt 0:00:07]} 26. Rh3 {[%emt 0:00:03]} Rc6 {[%emt 0:07:52]} 27. c3 {[%emt 0:02:04]} h4 {[%emt 0:00:28]} 28. Rd8+ {[%emt 0:11:09]} Ke7 {[%emt 0:00:07]} 29. Rhd3 {[%emt 0:00:29]} Rf6+ {[%emt 0:03:57]} 30. Kg1 {[%emt 0:00:48]} Re1+ {[%emt 0:00:07]} 31. Kh2 {[%emt 0:00:05]} Rf2 {[%emt 0:06:26]} 32. Rd2 {[%emt 0:15:25]} Ree2 {[%emt 0:00:24]} 33. R8d7+ {[%emt 0:03:10]} Kf6 {[%emt 0:00:13]} 34. Rxe2 {[%emt 0:00:20]} Rxe2 {[%emt 0:00:02]} 35. Rxa7 {[%emt 0:00:17]} g5 {[%emt 0:01:32]} 36. Ra4 {[%emt 0:03:03]} Kf5 {[%emt 0:04:40]} 37. Rb4 {[%emt 0:01:02]} g4 {[%emt 0:00:12]} 38. Kg1 {[%emt 0:00:30]} g3 {[%emt 0:00:38]} 39. Kf1 {[%emt 0:00:05]} Rf2+ {[%emt 0:00:04]} 0-1

[Event "35th European Club Cup 2019"]
[Site "Ulcinj"]
[Date "2019.11.14"]
[Round "5.17"]
[White "Gnichtel, Gerd"]
[Black "Lamser, Jan"]
[Result "1/2-1/2"]
[ECO "D02"]
[WhiteElo "2134"]
[BlackElo "2134"]
[Annotator "NA"]
[PlyCount "89"]
[EventDate "2019.11.10"]
[EventType "team-tourn"]
[EventCountry "MNE"]
[SourceTitle "playchess.com"]
[Source "ChessBase"]
[SourceQuality "1"]
[WhiteTeam "De Sprenger Echternach"]
[BlackTeam "Unichess"]
[TimeControl "40/5400+30:1800+30"]

1. d4 {[%emt 0:00:00]} d5 {[%emt 0:00:00]} 2. Nf3 {[%emt 0:00:01]} e6 {[%emt 0:00:04]} 3. g3 {[%emt 0:01:22]} c5 {[%emt 0:00:25]} 4. c3 {[%emt 0:00:51]} Nf6 {[%emt 0:07:07]} 5. Bg2 {[%emt 0:00:51]} b5 {[%emt 0:02:25]} 6. Ne5 {[%emt 0:10:17]} Qb6 {[%emt 0:07:41]} 7. O-O {[%emt 0:03:23]} Bb7 {[%emt 0:03:25]} 8. a4 {[%emt 0:06:58]} a5 {[%emt 0:03:14]} 9. axb5 {[%emt 0:06:07]} Qxb5 {[%emt 0:00:18]} 10. c4 {[%emt 0:01:19]} dxc4 {[%emt 0:03:39]} 11. Na3 {[%emt 0:01:06]} Qa6 {[%emt 0:01:54]} 12. Qa4+ {[%emt 0:09:15]} Nbd7 {[%emt 0:00:26]} 13. Naxc4 {[%emt 0:19:02]} Bxg2 {[%emt 0:02:39]} 14. Kxg2 {[%emt 0:01:02]} cxd4 {[%emt 0:01:48]} 15. Bg5 Bc5 {[%emt 0:17:47]} 16. Nxa5 {[%emt 0:18:14]} Qd6 {[%emt 0:03:57]} 17. Bxf6 {[%emt 0:03:37]} gxf6 {[%emt 0:00:58]} 18. Nxd7 {[%emt 0:00:28]} Qd5+ {[%emt 0:01:01]} 19. Kg1 {[%emt 0:00:09]} Qxd7 {[%emt 0:00:09]} 20. Qc4 {[%emt 0:03:36]} Bb6 {[%emt 0:02:00]} 21. b4 {[%emt 0:01:36]} O-O 22. Nc6 {[%emt 0:00:51]} Rfc8 {[%emt 0:09:14]} 23. b5 {[%emt 0:00:17]} Kg7 {[%emt 0:03:25]} 24. Rfd1 {[%emt 0:00:40]} e5 {[%emt 0:01:55]} 25. Qd3 {[%emt 0:02:49]} Qe6 {[%emt 0:01:58]} 26. Qe4 {[%emt 0:02:14]} Rxa1 {[%emt 0:03:44]} 27. Rxa1 {[%emt 0:00:02]} f5 {[%emt 0:02:27]} 28. Qxe5+ {[%emt 0:02:12]} Qxe5 {[%emt 0:00:12]} 29. Nxe5 {[%emt 0:00:02]} Rc5 {[%emt 0:04:36]} 30. Nd7 {[%emt 0:00:23]} Rxb5 {[%emt 0:00:12]} 31. Nxb6 {[%emt 0:00:06]} Rxb6 {[%emt 0:00:05]} 32. Ra5 {[%emt 0:01:02]} Kf6 {[%emt 0:04:02]} 33. Rd5 {[%emt 0:00:15]} Rb2 {[%emt 0:01:11]} 34. Kf1 {[%emt 0:00:25]} Rb1+ {[%emt 0:00:10]} 35. Kg2 {[%emt 0:00:06]} Rb4 {[%emt 0:01:39]} 36. Kf3 {[%emt 0:02:30]} Ke6 {[%emt 0:00:34]} 37. Rd8 {[%emt 0:00:30]} Ke7 {[%emt 0:00:22]} 38. Rd5 {[%emt 0:01:11]} Ke6 {[%emt 0:00:05]} 39. Rd8 {[%emt 0:01:07]} Ke7 {[%emt 0:00:55]} 40. Rh8 {[%emt 0:00:00]} Rb3+ {[%emt 0:00:00]} 41. Kf4 {[%emt 0:01:40]} Rb2 {[%emt 0:00:49]} 42. Kf3 {[%emt 0:00:53]} Rb3+ {[%emt 0:00:11]} 43. Kg2 {[%emt 0:05:30]} Rb2 {[%emt 0:00:16]} 44. Kf1 {[%emt 0:01:00]} Rb1+ {[%emt 0:00:05]} 45. Kg2 {[%emt 0:00:06]} 1/2-1/2

[Event "35th European Club Cup 2019"]
[Site "Ulcinj"]
[Date "2019.11.14"]
[Round "5.17"]
[White "Vujovic, Savo"]
[Black "Iivonen, Markku"]
[Result "1-0"]
[ECO "B06"]
[WhiteElo "2040"]
[BlackElo "2096"]
[Annotator "NA"]
[PlyCount "78"]
[EventDate "2019.11.10"]
[EventType "team-tourn"]
[EventCountry "MNE"]
[SourceTitle "playchess.com"]
[Source "ChessBase"]
[SourceQuality "1"]
[WhiteTeam "Crnogorac"]
[BlackTeam "Tammer-Shakki"]
[TimeControl "40/5400+30:1800+30"]

1. e4 {[%emt 0:00:00]} g6 {[%emt 0:00:00]} 2. d4 {[%emt 0:00:00]} Bg7 {[%emt 0:00:00]} 3. c4 {[%emt 0:00:52]} d6 {[%emt 0:00:14]} 4. Nc3 {[%emt 0:00:30]} Nd7 {[%emt 0:00:28]} 5. Nf3 {[%emt 0:00:00]} c5 {[%emt 0:01:24]} 6. Be2 {[%emt 0:00:25]} a6 {[%emt 0:02:26]} 7. O-O {[%emt 0:01:06]} cxd4 {[%emt 0:00:43]} 8. Nxd4 {[%emt 0:00:09]} Ngf6 {[%emt 0:00:10]} 9. Be3 {[%emt 0:00:42]} O-O {[%emt 0:00:24]} 10. f4 {[%emt 0:01:31]} Qc7 {[%emt 0:08:08]} 11. Rc1 {[%emt 0:02:08]} e6 12. Bf3 {[%emt 0:03:16]} Rb8 {[%emt 0:13:44]} 13. g4 {[%emt 0:06:20]} b6 {[%emt 0:00:36]} 14. Ncb5 {[%emt 0:08:10]} axb5 {[%emt 0:01:52]} 15. cxb5 {[%emt 0:00:05]} Qb7 {[%emt 0:04:11]} 16. Nc6 {[%emt 0:01:20]} d5 {[%emt 0:14:15]} 17. exd5 {[%emt 0:03:21]} Nxd5 {[%emt 0:00:03]} 18. Bxd5 {[%emt 0:00:13]} exd5 {[%emt 0:00:08]} 19. Bd4 {[%emt 0:04:51]} f6 {[%emt 0:06:05]} 20. Re1 {[%emt 0:01:31]} Qa8 {[%emt 0:07:57]} 21. Re7 {[%emt 0:04:08]} Rb7 {[%emt 0:01:36]} 22. Qb3 {[%emt 0:03:20]} Nc5 {[%emt 0:06:46]} 23. Bxc5 {[%emt 0:01:49]} bxc5 {[%emt 0:00:11]} 24. Qxd5+ {[%emt 0:00:22]} Kh8 {[%emt 0:00:16]} 25. Nd8 {[%emt 0:03:10]} Rxe7 {[%emt 0:09:28]} 26. Qxa8 {[%emt 0:00:17]} Rxd8 {[%emt 0:00:06]} 27. Rxc5 {[%emt 0:10:44]} Ree8 {[%emt 0:01:55]} 28. Rd5 {[%emt 0:04:03]} Bf8 {[%emt 0:05:11]} 29. Qc6 {[%emt 0:01:52]} Kg8 {[%emt 0:03:04]} 30. Rxd8 {[%emt 0:03:01]} Rxd8 {[%emt 0:00:02]} 31. b6 {[%emt 0:02:32]} Rd1+ {[%emt 0:04:45]} 32. Kf2 {[%emt 0:00:13]} Bd7 {[%emt 0:00:20]} 33. Qc4+ {[%emt 0:01:13]} Kg7 {[%emt 0:00:09]} 34. b7 {[%emt 0:01:35]} Bd6 {[%emt 0:00:57]} 35. Qc8 {[%emt 0:02:57]} Bxf4 {[%emt 0:00:23]} 36. b8=Q {[%emt 0:01:33]} Bxb8 {[%emt 0:01:37]} 37. Qxb8 {[%emt 0:00:11]} Bxg4 {[%emt 0:00:13]} 38. a4 {[%emt 0:00:27]} Rd2+ {[%emt 0:06:36]} 39. Ke3 {[%emt 0:00:16]} Re2+ {[%emt 0:00:08] Ke4} 1-0

[Event "35th European Club Cup 2019"]
[Site "Ulcinj"]
[Date "2019.11.14"]
[Round "5.18"]
[White "Setkauskas, Vaidas"]
[Black "Bettalli, Francesco"]
[Result "1/2-1/2"]
[ECO "B30"]
[WhiteElo "2195"]
[BlackElo "2164"]
[Annotator "NA"]
[PlyCount "37"]
[EventDate "2019.11.10"]
[EventType "team-tourn"]
[EventCountry "MNE"]
[SourceTitle "playchess.com"]
[Source "ChessBase"]
[SourceQuality "1"]
[WhiteTeam "MRU-ROSK Consulting"]
[BlackTeam "WorldTradingLab Club"]
[TimeControl "40/5400+30:1800+30"]

1. e4 {[%emt 0:00:00]} c5 {[%emt 0:00:00]} 2. Nf3 {[%emt 0:00:00]} Nc6 {[%emt 0:00:05]} 3. Nc3 {[%emt 0:00:21]} d6 {[%emt 0:00:08]} 4. d4 {[%emt 0:05:22]} cxd4 {[%emt 0:00:06]} 5. Nxd4 {[%emt 0:00:03]} e5 {[%emt 0:00:08]} 6. Nxc6 {[%emt 0:02:12]} bxc6 {[%emt 0:00:08]} 7. Bc4 {[%emt 0:05:17]} Be7 {[%emt 0:01:32]} 8. Qh5 {[%emt 0:02:21]} g6 {[%emt 0:02:01]} 9. Qf3 {[%emt 0:02:32]} Nf6 {[%emt 0:05:57]} 10. Bh6 {[%emt 0:25:56]} Rb8 {[%emt 0:07:38]} 11. h3 {[%emt 0:02:19]} Be6 {[%emt 0:03:57]} 12. Bb3 {[%emt 0:02:09]} Nd7 {[%emt 0:12:44]} 13. Rd1 {[%emt 0:10:20]} Qc7 {[%emt 0:03:43]} 14. Bxe6 {[%emt 0:13:17]} fxe6 {[%emt 0:00:06]} 15. b3 {[%emt 0:00:08]} Bf8 {[%emt 0:07:27]} 16. Bg5 {[%emt 0:01:38]} Be7 {[%emt 0:05:11]} 17. Bh6 {[%emt 0:00:38]} Bf8 {[%emt 0:09:47]} 18. Bg5 {[%emt 0:01:37]} Be7 {[%emt 0:04:21]} 19. Bh6 {[%emt 0:00:06]} 1/2-1/2

[Event "35th European Club Cup 2019"]
[Site "Ulcinj"]
[Date "2019.11.14"]
[Round "5.18"]
[White "Vanek, Petr"]
[Black "Sparwel, Oliver"]
[Result "1/2-1/2"]
[ECO "B00"]
[WhiteElo "2049"]
[BlackElo "1977"]
[Annotator "NA"]
[PlyCount "67"]
[EventDate "2019.11.10"]
[EventType "team-tourn"]
[EventCountry "MNE"]
[SourceTitle "playchess.com"]
[Source "ChessBase"]
[SourceQuality "1"]
[WhiteTeam "Unichess"]
[BlackTeam "De Sprenger Echternach"]
[TimeControl "40/5400+30:1800+30"]

1. e4 {[%emt 0:00:00]} d6 {[%emt 0:00:00]} 2. Nc3 {[%emt 0:00:00]} Nf6 {[%emt 0:00:09]} 3. g3 {[%emt 0:00:58]} e5 {[%emt 0:00:13]} 4. Bg2 {[%emt 0:00:14]} g6 {[%emt 0:02:00]} 5. Nf3 {[%emt 0:01:30]} Bg7 {[%emt 0:00:39]} 6. O-O {[%emt 0:01:13]} Nc6 {[%emt 0:02:14]} 7. d4 {[%emt 0:07:32]} Bg4 {[%emt 0:01:24]} 8. d5 {[%emt 0:02:14]} Nd4 {[%emt 0:02:01]} 9. Be3 {[%emt 0:01:49]} Nxf3+ {[%emt 0:10:10]} 10. Bxf3 {[%emt 0:00:07]} Bxf3 {[%emt 0:00:13]} 11. Qxf3 {[%emt 0:00:06]} O-O {[%emt 0:00:13]} 12. Qe2 {[%emt 0:04:56]} Nd7 {[%emt 0:02:23]} 13. Qd2 {[%emt 0:06:23]} f5 {[%emt 0:09:29]} 14. Bh6 {[%emt 0:04:10]} f4 {[%emt 0:04:18]} 15. Bxg7 {[%emt 0:00:09]} Kxg7 {[%emt 0:00:08]} 16. f3 {[%emt 0:01:06]} Qe7 {[%emt 0:15:45]} 17. Qg2 {[%emt 0:06:30]} Kh8 {[%emt 0:04:40]} 18. Kf2 {[%emt 0:01:21]} b5 {[%emt 0:03:36]} 19. a3 {[%emt 0:03:37]} a5 {[%emt 0:03:04]} 20. Nxb5 {[%emt 0:01:37]} Rab8 {[%emt 0:07:09]} 21. a4 {[%emt 0:03:07]} c6 {[%emt 0:01:03]} 22. dxc6 {[%emt 0:00:24]} Nc5 {[%emt 0:00:55]} 23. b3 {[%emt 0:01:37]} fxg3+ {[%emt 0:01:15]} 24. hxg3 {[%emt 0:00:46]} Nxe4+ {[%emt 0:02:13]} 25. Kg1 {[%emt 0:00:26]} Nxg3 {[%emt 0:05:30]} 26. Qxg3 {[%emt 0:03:52]} Rf5 {[%emt 0:00:02]} 27. f4 {[%emt 0:06:37]} exf4 {[%emt 0:05:06]} 28. Qc3+ {[%emt 0:01:34]} Re5 {[%emt 0:00:49]} 29. Rae1 {[%emt 0:04:27]} Qg5+ {[%emt 0:00:44]} 30. Kh2 {[%emt 0:01:05]} Rbe8 {[%emt 0:01:17]} 31. Nxd6 {[%emt 0:05:21]} Qh4+ {[%emt 0:00:40]} 32. Kg1 {[%emt 0:01:00]} Qg4+ {[%emt 0:02:53]} 33. Kh2 {[%emt 0:00:38]} Qh4+ {[%emt 0:00:06]} 34. Kg1 1/2-1/2